bitfinex-derivatives/quotes_BTCF0:USTF0_20260131
["timestamp","ask_amount","ask_price","bid_price","bid_amount"]
[1769874543099,0.01228,81558.0,81537.0,0.27370079]
[1769874544095,0.09956,81559.0,81537.0,0.27370079]
[1769874545498,0.11184,81559.0,81537.0,0.27370079]
[1769874545899,0.28656251,81551.0,81522.0,0.27370079]
[1769874546100,0.28656251,81551.0,81524.0,0.27370079]
[1769874546403,0.09956,81559.0,81532.0,0.27370079]
[1769874546612,0.09956,81559.0,81534.0,0.27370079]
[1769874546803,0.09956,81559.0,81536.0,0.27370079]
[1769874547110,0.012277,81566.0,81540.0,0.2841012]
[1769874547405,0.012278,81563.0,81540.0,0.2841012]
[1769874547599,0.012278,81560.0,81540.0,0.2841012]
[1769874547800,0.36994609,81588.0,81547.0,0.2841012]
[1769874548000,0.38222009,81588.0,81559.0,0.2841012]
[1769874548200,0.28270009,81586.0,81559.0,0.2841012]
[1769874548608,0.012274,81586.0,81560.0,0.48648]
[1769874548808,0.09952,81588.0,81561.0,0.2841012]
[1769874549211,0.012274,81587.0,81561.0,0.2841012]
[1769874549401,0.012224,81587.0,81561.0,0.2841012]
[1769874549600,0.012174,81587.0,81561.0,0.2841012]
[1769874550221,0.012275,81584.0,81561.0,0.2841012]
[1769874550720,0.27042609,81581.0,81554.0,0.2841012]
[1769874550910,0.012276,81578.0,81555.0,0.7071412]
[1769874551111,0.012278,81565.0,81545.0,0.2841012]
[1769874551307,0.012279,81555.0,81546.0,0.09948]
[1769874551518,0.32356,81584.0,81536.0,0.2841012]
[1769874551519,0.27042609,81579.0,81536.0,0.2841012]
[1769874551719,0.32356,81584.0,81550.0,0.2841012]
[1769874551720,0.09948,81578.0,81550.0,0.2841012]
[1769874552021,0.012276,81572.0,81552.0,0.2841012]
[1769874552219,0.012276,81572.0,81553.0,0.09948]
[1769874552413,0.012277,81569.0,81546.0,0.2841012]
[1769874552613,0.28270309,81566.0,81545.0,0.001]
[1769874552916,0.28265309,81566.0,81540.0,0.09948]
[1769874553113,0.09948,81568.0,81540.0,0.09948]
[1769874553114,0.09948,81568.0,81540.0,0.111761]
[1769874554522,0.09948,81568.0,81541.0,0.2841012]
[1769874554723,0.001,81566.0,81541.0,0.2841012]
[1769874554914,0.001,81566.0,81543.0,0.2841012]
[1769874555310,0.09948,81568.0,81543.0,0.2841012]
[1769874555623,0.09948,81568.0,81545.0,0.2841012]
[1769874556121,0.012278,81565.0,81545.0,0.2841012]
[1769874556524,0.012278,81563.0,81545.0,0.2841012]
[1769874556715,0.012277,81567.0,81545.0,0.2841012]
[1769874557220,0.012277,81567.0,81540.0,0.09948]
[1769874557221,0.012275,81581.0,81555.0,0.2841012]
[1769874557431,0.09948,81583.0,81557.0,0.2963802]
[1769874557610,0.09948,81583.0,81559.0,0.2841012]
[1769874558422,0.111755,81583.0,81559.0,0.2841012]
[1769874558916,0.012275,81580.0,81559.0,0.2841012]
[1769874559911,0.28270109,81580.0,81558.0,0.49604]
[1769874560218,0.012276,81576.0,81558.0,0.49604]
[1769874561119,0.012275,81580.0,81559.0,0.2841012]
[1769874561419,0.09948,81583.0,81559.0,0.2841012]
[1769874561625,0.012277,81566.0,81541.0,0.2841012]
[1769874561816,0.012277,81566.0,81508.0,0.1233]
[1769874561817,0.012279,81556.0,81529.0,0.2841012]
[1769874562018,0.27042609,81553.0,81528.0,0.09948]
[1769874562325,0.012281,81539.0,81515.0,0.2841012]
[1769874562517,0.012282,81537.0,81515.0,0.2841012]
[1769874562822,0.09948,81538.0,81515.0,0.2841012]
[1769874563217,0.28270809,81536.0,81508.0,0.2841012]
[1769874563417,0.012282,81532.0,81508.0,0.2841012]
[1769874563826,0.28270809,81532.0,81508.0,0.2841012]
[1769874564120,0.012282,81537.0,81508.0,0.2841012]
[1769874564423,0.11122133,81536.0,81508.0,0.2841012]
[1769874564620,0.012282,81537.0,81508.0,0.2851012]
[1769874564827,0.09948,81538.0,81508.0,0.2851012]
[1769874565012,0.09948,81538.0,81512.0,0.2841012]
[1769874565614,0.111762,81538.0,81512.0,0.2841012]
[1769874567424,0.28270909,81532.0,81506.0,0.09948]
[1769874567928,0.28270909,81529.0,81504.0,0.2841012]
[1769874568129,0.28270909,81527.0,81504.0,0.2841012]
[1769874568628,0.28270909,81527.0,81490.0,0.17812522]
[1769874568629,0.28271009,81522.0,81496.0,0.2841012]
[1769874569027,0.09948,81528.0,81487.0,0.2841012]
[1769874569028,0.28271109,81516.0,81487.0,0.2841012]
[1769874569325,0.012286,81507.0,81484.0,0.09948]
[1769874569523,0.012286,81511.0,81484.0,0.09948]
[1769874569730,0.012286,81511.0,81484.0,0.3835812]
[1769874569923,0.13497183,81511.0,81484.0,0.3835812]
[1769874570627,0.13497183,81511.0,81484.0,0.2841012]
[1769874570929,0.12268583,81511.0,81484.0,0.2841012]
[1769874572624,0.09948,81515.0,81490.0,0.2841012]
[1769874574129,0.012285,81513.0,81490.0,0.2851012]
[1769874574824,0.09948,81515.0,81490.0,0.2851012]
[1769874575031,0.012285,81514.0,81490.0,0.2851012]
[1769874575220,0.012286,81511.0,81490.0,0.2851012]
[1769874576030,0.09948,81515.0,81490.0,0.2851012]
[1769874576922,0.09948,81515.0,81490.0,0.2973902]
[1769874577128,0.09948,81515.0,81490.0,0.2963902]
[1769874577728,0.012284,81525.0,81496.0,0.27533834]
[1769874577925,0.0675922,81525.0,81498.0,0.27533834]
[1769874578223,0.012283,81526.0,81498.0,0.27533834]
[1769874578619,0.08121174,81526.0,81498.0,0.27533834]
[1769874579321,0.08121174,81526.0,81498.0,0.27528834]
[1769874579518,0.08121174,81526.0,81498.0,0.28757634]
[1769874581227,0.09952,81529.0,81501.0,0.012287]
[1769874581423,0.09952,81529.0,81502.0,0.27935775]
[1769874582027,0.012282,81534.0,81507.0,0.27935775]
[1769874582222,0.06865679,81536.0,81509.0,0.27935775]
[1769874582431,0.012282,81538.0,81511.0,0.27935775]
[1769874582628,0.012282,81535.0,81511.0,0.27935775]
[1769874584432,0.06745988,81538.0,81511.0,0.27935775]
[1769874584626,0.012282,81537.0,81511.0,0.27935775]
[1769874585233,0.06675075,81539.0,81513.0,0.27935775]
[1769874585428,0.09952,81541.0,81515.0,0.27935775]
[1769874585732,0.09952,81541.0,81517.0,0.27935775]
[1769874586132,0.09952,81541.0,81519.0,0.27935775]
[1769874586328,0.09952,81541.0,81521.0,0.27935775]
[1769874586638,0.09952,81541.0,81520.0,0.09952]
[1769874586639,0.09952,81552.0,81525.0,0.27935775]
[1769874586933,0.01228,81548.0,81525.0,0.27935775]
[1769874588635,0.17770118,81552.0,81525.0,0.27935775]
[1769874589036,0.01228,81549.0,81525.0,0.27935775]
[1769874590631,0.09952,81552.0,81520.0,0.111804]
[1769874590632,0.012281,81540.0,81520.0,0.09952]
[1769874590832,0.09952,81539.0,81520.0,0.09952]
[1769874591642,0.09952,81539.0,81520.0,0.37887775]
[1769874591845,0.28866549,81538.0,81520.0,0.09952]
[1769874592139,0.28866549,81538.0,81508.0,0.012286]
[1769874592140,0.012283,81532.0,81508.0,0.27935775]
[1769874592835,0.012283,81532.0,81507.0,0.09952]
[1769874592836,0.28866649,81526.0,81501.0,0.27935775]
[1769874593039,0.09952,81525.0,81501.0,0.27935775]
[1769874595141,0.09952,81525.0,81508.0,0.001]
[1769874595744,0.09952,81525.0,81501.0,0.27935775]
[1769874599151,0.09952,81525.0,81509.0,0.27935775]
[1769874599337,0.09952,81525.0,81510.0,0.29164375]
[1769874599850,0.27638349,81546.0,81509.0,0.4034]
[1769874599851,0.27638349,81551.0,81518.0,0.27935775]
[1769874600042,0.06768201,81547.0,81520.0,0.27935775]
[1769874600351,0.06768201,81547.0,81524.0,0.27935775]
[1769874600650,0.43932,81550.0,81527.0,0.27935775]
[1769874601250,0.01228,81546.0,81527.0,0.27935775]
[1769874601647,0.4516,81550.0,81527.0,0.27935775]
[1769874601844,0.10985318,81549.0,81527.0,0.27935775]
[1769874602044,0.43932,81550.0,81527.0,0.27935775]
[1769874605443,0.43932,81550.0,81516.0,0.09952]
[1769874605444,0.27638349,81547.0,81516.0,0.24600884]
[1769874605650,0.012283,81530.0,81510.0,0.14648884]
[1769874605856,0.09952,81529.0,81506.0,0.27935775]
[1769874606345,0.012283,81527.0,81506.0,0.27935775]
[1769874606657,0.012284,81520.0,81500.0,1.6]
[1769874606949,0.3928793,81519.0,81500.0,1.6]
[1769874607149,0.012285,81518.0,81500.0,1.6]
[1769874607351,0.09952,81519.0,81500.0,1.6]
[1769874607555,0.09952,81519.0,81500.0,1.88541054]
[1769874609350,0.09952,81519.0,81501.0,0.28541054]
[1769874610847,0.111804,81519.0,81500.0,1.6]
[1769874613454,0.111804,81519.0,81501.0,0.28541054]
[1769874616761,0.09952,81519.0,81501.0,0.28541054]
[1769874618159,0.09952,81519.0,81500.0,1.6]
[1769874618357,0.2933593,81517.0,81500.0,1.34216]
[1769874618561,0.68335753,81518.0,81500.0,0.648527]
[1769874618562,0.2933593,81511.0,81500.0,0.648527]
[1769874618766,0.3056463,81504.0,81483.0,0.28541054]
[1769874618969,0.012287,81502.0,81483.0,0.28541054]
[1769874619357,0.09952,81503.0,81479.0,0.09952]
[1769874619358,0.3056463,81499.0,81479.0,0.09952]
[1769874621660,0.012288,81496.0,81479.0,0.09952]
[1769874621965,0.3056473,81496.0,81472.0,0.41412]
[1769874622166,0.3056473,81496.0,81472.0,0.69953054]
[1769874622362,0.3056473,81496.0,81473.0,0.28541054]
[1769874622862,0.2933593,81493.0,81469.0,0.09952]
[1769874623068,0.44724,81501.0,81469.0,0.09952]
[1769874623069,0.2933593,81491.0,81469.0,0.09952]
[1769874623567,0.01229,81483.0,81459.0,0.28541054]
[1769874623768,0.09952,81482.0,81464.0,0.28541054]
[1769874624171,0.01229,81481.0,81457.0,0.70013054]
[1769874626270,0.09952,81482.0,81472.0,0.28541054]
[1769874626472,0.09952,81499.0,81474.0,0.28541054]
[1769874626675,0.012288,81495.0,81474.0,0.28541054]
[1769874626873,0.2933593,81498.0,81474.0,0.28541054]
[1769874627374,0.012288,81497.0,81474.0,0.28541054]
[1769874627572,0.3056473,81497.0,81474.0,0.28541054]
[1769874627779,0.09952,81499.0,81474.0,0.28541054]
[1769874628077,0.09952,81499.0,81476.0,0.28541054]
[1769874628777,0.2933593,81498.0,81476.0,0.28541054]
[1769874628967,0.2933593,81498.0,81471.0,0.00010707]
[1769874629172,0.012288,81494.0,81471.0,0.00010707]
[1769874629366,0.3056473,81494.0,81471.0,0.00010707]
[1769874629766,0.2933593,81492.0,81471.0,0.00010707]
[1769874631275,0.2933593,81492.0,81471.0,0.28551761]
[1769874632170,0.2933593,81492.0,81471.0,0.00010707]
[1769874633378,0.012289,81491.0,81471.0,0.00010707]
[1769874633675,0.3056483,81491.0,81471.0,0.00010707]
[1769874635272,0.2933593,81487.0,81471.0,0.00010707]
[1769874635466,0.2933593,81485.0,81471.0,0.00010707]
[1769874637071,0.2933593,81485.0,81471.0,0.00110707]
[1769874637872,0.3056493,81485.0,81471.0,0.00110707]
[1769874638071,0.28726041,81481.0,81458.0,0.09956]
[1769874639279,0.28726041,81481.0,81458.0,0.37990417]
[1769874639474,0.73582002,81484.0,81459.0,0.28034417]
[1769874639671,0.44855961,81484.0,81459.0,0.28034417]
[1769874639982,0.09956,81494.0,81473.0,0.28034417]
[1769874640682,0.28726041,81498.0,81473.0,0.28034417]
[1769874640882,0.09956,81497.0,81473.0,0.28034417]
[1769874641074,0.38451336,81497.0,81473.0,0.28034417]
[1769874641275,0.28495336,81496.0,81473.0,0.28034417]
[1769874642868,0.09956,81497.0,81473.0,0.28034417]
[1769874643274,0.12272272,81496.0,81473.0,0.28034417]
[1769874643473,0.09956,81497.0,81475.0,0.28262573]
[1769874643670,0.28495336,81510.0,81482.0,0.28262573]
[1769874643874,0.012282,81535.0,81465.0,0.41404]
[1769874643875,0.11220665,81509.0,81489.0,0.28262573]
[1769874644082,0.28495336,81516.0,81489.0,0.28262573]
[1769874644083,0.09956,81508.0,81489.0,0.28262573]
[1769874646482,0.09956,81508.0,81486.0,0.09956]
[1769874646483,0.09956,81508.0,81491.0,0.28262573]
[1769874646776,0.09956,81511.0,81491.0,0.28262573]
[1769874648583,0.28495336,81510.0,81486.0,0.09956]
[1769874649586,0.28495336,81508.0,81486.0,0.09956]
[1769874650787,0.28495336,81508.0,81485.0,0.28262573]
[1769874651585,0.28495336,81506.0,81483.0,0.09956]
[1769874651886,0.28495336,81506.0,81484.0,0.28262573]
[1769874652087,0.09956,81511.0,81484.0,0.28262573]
[1769874652281,0.28495336,81510.0,81484.0,0.28262573]
[1769874652789,0.09956,81509.0,81486.0,0.28262573]
[1769874653386,0.28495336,81526.0,81497.0,0.28262573]
[1769874653387,0.09956,81515.0,81497.0,0.28262573]
[1769874657879,0.012284,81524.0,81497.0,0.28262573]
[1769874657880,0.28495336,81523.0,81497.0,0.28262573]
[1769874658082,0.44976,81521.0,81497.0,0.28262573]
[1769874658685,0.73471336,81521.0,81497.0,0.28262573]
[1769874658885,0.74699736,81521.0,81497.0,0.28262573]
[1769874659081,0.74699736,81521.0,81493.0,0.111848]
[1769874659082,0.28495336,81517.0,81493.0,0.09956]
[1769874659292,0.28495336,81512.0,81493.0,0.09956]
[1769874659591,0.28495336,81510.0,81493.0,0.09956]
[1769874664190,0.29723936,81509.0,81493.0,0.09956]
[1769874664498,0.28495336,81509.0,81485.0,0.28262573]
[1769874664695,0.28495336,81505.0,81479.0,0.28262573]
[1769874664990,0.09952,81511.0,81478.0,0.09952]
[1769874664991,0.28495336,81496.0,81478.0,0.09952]
[1769874665196,0.38447336,81495.0,81478.0,0.09952]
[1769874665397,0.09952,81495.0,81479.0,0.28262573]
[1769874667893,0.28632117,81494.0,81469.0,0.012292]
[1769874668096,0.09952,81495.0,81468.0,0.09952]
[1769874668097,0.28632117,81489.0,81468.0,0.09952]
[1769874668789,0.44996,81490.0,81458.0,0.19462482]
[1769874668790,0.28632117,81480.0,81458.0,0.09952]
[1769874668993,0.38584117,81479.0,81458.0,0.09952]
[1769874669197,0.28632117,81478.0,81458.0,0.09952]
[1769874669693,0.09952,81479.0,81459.0,0.27938532]
[1769874670500,0.09952,81479.0,81458.0,0.09952]
[1769874670501,0.28632117,81478.0,81458.0,0.09952]
[1769874670696,0.28632117,81478.0,81458.0,0.37890532]
[1769874671793,0.28632117,81478.0,81458.0,0.09952]
[1769874672798,0.28632117,81478.0,81451.0,0.27938532]
[1769874673192,0.28632117,81469.0,81442.0,0.37894532]
[1769874673404,0.28632117,81467.0,81443.0,0.27938532]
[1769874673603,0.09956,81468.0,81443.0,0.27938532]
[1769874673803,0.09956,81468.0,81445.0,0.27938532]
[1769874674998,0.09956,81468.0,81448.0,0.27938532]
[1769874675800,0.09956,81468.0,81450.0,0.27938532]
[1769874676006,0.09956,81468.0,81451.0,0.29167932]
[1769874676601,0.09956,81468.0,81455.0,0.27938532]
[1769874676797,0.09956,81478.0,81457.0,0.27938532]
[1769874677400,0.09956,81478.0,81459.0,0.27938532]
[1769874680811,0.28632117,81477.0,81458.0,0.09956]
[1769874686208,0.28632117,81477.0,81453.0,0.27938532]
[1769874686409,0.28632117,81477.0,81450.0,0.012295]
[1769874686908,0.28632117,81477.0,81450.0,0.29168032]
[1769874689309,0.28632117,81474.0,81446.0,0.09956]
[1769874689504,0.28632117,81474.0,81446.0,0.37894532]
[1769874689705,0.28632117,81470.0,81446.0,0.37894532]
[1769874689906,0.28632117,81470.0,81447.0,0.27938532]
[1769874690108,0.29861317,81469.0,81442.0,0.14672952]
[1769874690302,0.28632117,81467.0,81440.0,0.15902552]
[1769874690506,0.28632117,81467.0,81441.0,0.09956]
[1769874691202,0.28632117,81467.0,81441.0,0.37894532]
[1769874691409,0.28632117,81465.0,81442.0,0.27938532]
[1769874691802,0.09956,81468.0,81444.0,0.27938532]
[1769874692008,0.09956,81468.0,81449.0,0.27938532]
[1769874693110,0.01229,81483.0,81457.0,0.27938532]
[1769874693317,0.66261962,81482.0,81457.0,0.27938532]
[1769874693612,0.29861117,81480.0,81457.0,0.27938532]
[1769874693914,0.01229,81480.0,81457.0,0.27938532]
[1769874694115,0.55284,81482.0,81457.0,0.27938532]
[1769874694313,0.24377475,81503.0,81457.0,0.27938532]
[1769874694314,0.012289,81488.0,81457.0,0.27938532]
[1769874694510,0.10990888,81487.0,81457.0,0.27938532]
[1769874694816,0.10990888,81486.0,81457.0,0.27938532]
[1769874695011,0.10990888,81485.0,81457.0,0.27938532]
[1769874695216,0.10993633,81484.0,81457.0,0.27938532]
[1769874695417,0.29861017,81488.0,81457.0,0.27938532]
[1769874695616,0.10994422,81487.0,81457.0,0.27938532]
[1769874695917,0.10994422,81486.0,81457.0,0.27938532]
[1769874696118,0.10994422,81485.0,81459.0,0.27938532]
[1769874696324,0.10994422,81484.0,81459.0,0.27938532]
[1769874696523,0.10994422,81483.0,81459.0,0.27938532]
[1769874696821,0.09956,81482.0,81459.0,0.27938532]
[1769874697217,0.11009925,81481.0,81459.0,0.27938532]
[1769874697414,0.09956,81482.0,81459.0,0.27938532]
[1769874697610,0.11010084,81481.0,81459.0,0.27938532]
[1769874697916,0.09956,81482.0,81459.0,0.27938532]
[1769874698115,0.11011778,81481.0,81459.0,0.27938532]
[1769874698316,0.11016665,81480.0,81459.0,0.27938532]
[1769874698518,0.11017482,81479.0,81459.0,0.27938532]
[1769874698719,0.11185,81482.0,81459.0,0.27938532]
[1769874698921,0.11017603,81481.0,81459.0,0.27938532]
[1769874699117,0.11017603,81480.0,81459.0,0.27938532]
[1769874699319,0.40307125,81479.0,81459.0,0.27938532]
[1769874699521,0.29289522,81478.0,81455.0,0.41668]
[1769874699924,0.11014566,81477.0,81455.0,0.70458029]
[1769874700224,0.29289522,81475.0,81455.0,0.70458029]
[1769874700423,0.29289522,81478.0,81456.0,0.28790029]
[1769874700618,0.29289522,81476.0,81455.0,0.41668]
[1769874701126,0.29289522,81476.0,81456.0,0.29476572]
[1769874702818,0.2868663,81474.0,81450.0,0.18233082]
[1769874703023,0.2868663,81467.0,81448.0,0.09956]
[1769874703217,0.2868663,81465.0,81448.0,0.09956]
[1769874703929,0.2868663,81463.0,81448.0,0.09956]
[1769874704323,0.111852,81466.0,81448.0,0.09956]
[1769874704525,0.11013933,81465.0,81449.0,0.29476572]
[1769874704822,0.11013933,81464.0,81449.0,0.29476572]
[1769874705021,0.09956,81466.0,81449.0,0.29476572]
[1769874705720,0.09956,81465.0,81449.0,0.29476572]
[1769874706418,0.2868663,81473.0,81449.0,0.29476572]
[1769874706620,0.66373186,81472.0,81449.0,0.29476572]
[1769874706818,0.11013186,81471.0,81449.0,0.29476572]
[1769874707023,0.5536,81472.0,81453.0,0.29476572]
[1769874707427,0.09956,81472.0,81453.0,0.29476572]
[1769874711338,0.09956,81472.0,81455.0,0.29476572]
[1769874713331,0.09956,81472.0,81457.0,0.29476572]
[1769874714026,0.09956,81472.0,81459.0,0.29476572]
[1769874714531,0.09956,81472.0,81460.0,0.29476572]
[1769874719724,0.09956,81472.0,81459.0,0.42188]
[1769874720432,0.09956,81472.0,81459.0,0.29476572]
[1769874721434,0.09956,81472.0,81458.0,0.09956]
[1769874721929,0.09956,81472.0,81458.0,0.39432572]
[1769874722127,0.09956,81472.0,81459.0,0.29476572]
[1769874723033,0.2868663,81471.0,81458.0,0.09528056]
[1769874723422,0.09956,81472.0,81458.0,0.09528056]
[1769874723836,0.2868663,81471.0,81458.0,0.09528056]
[1769874724333,0.09956,81472.0,81459.0,0.29476572]
[1769874725634,0.09956,81472.0,81459.0,0.30705872]
[1769874725827,0.012289,81486.0,81463.0,0.29476572]
[1769874726033,0.1104025,81485.0,81465.0,0.29476572]
[1769874726234,0.09956,81487.0,81467.0,0.29476572]
[1769874727636,0.29823703,81486.0,81467.0,0.29476572]
[1769874727831,0.09956,81487.0,81467.0,0.29476572]
[1769874728431,0.09956,81499.0,81476.0,0.27501145]
[1769874728630,0.09956,81499.0,81475.0,0.012291]
[1769874728631,0.11334081,81498.0,81478.0,0.27501145]
[1769874728841,0.09956,81500.0,81480.0,0.27501145]
[1769874729833,0.29823703,81499.0,81479.0,0.42716]
[1769874730034,0.29823703,81499.0,81437.0,0.50383687]
[1769874730035,0.29823703,81485.0,81465.0,0.18233082]
[1769874730240,0.29823703,81478.0,81462.0,0.09956]
[1769874730438,0.29823703,81473.0,81462.0,0.09956]
[1769874731340,0.29823703,81477.0,81462.0,0.09956]
[1769874731742,0.01229,81482.0,81462.0,0.09956]
[1769874732040,0.29823703,81480.0,81462.0,0.09956]
[1769874732442,0.29823703,81478.0,81462.0,0.09956]
[1769874733536,0.31052703,81483.0,81462.0,0.09956]
[1769874733738,0.40947303,81482.0,81462.0,0.09956]
[1769874733936,0.111236,81481.0,81462.0,0.09956]
[1769874735246,0.40947303,81481.0,81462.0,0.09956]
[1769874735440,0.42176303,81480.0,81462.0,0.09956]
[1769874735641,0.29823703,81479.0,81462.0,0.09956]
[1769874736047,0.09956,81484.0,81465.0,0.27501145]
[1769874736246,0.11007351,81483.0,81467.0,0.27501145]
[1769874736438,0.09956,81484.0,81467.0,0.27501145]
[1769874737242,0.09956,81484.0,81471.0,0.27501145]
[1769874739844,0.45716,81491.0,81473.0,0.27501145]
[1769874745339,0.45716,81491.0,81473.0,0.27601145]
[1769874746146,0.45716,81491.0,81473.0,0.27501145]
[1769874746440,0.75539703,81491.0,81473.0,0.27501145]
[1769874747051,0.29823703,81490.0,81473.0,0.27501145]
[1769874747244,0.29823703,81490.0,81468.0,0.28730345]
[1769874748049,0.29823703,81490.0,81469.0,0.37457145]
[1769874748551,0.29823703,81490.0,81470.0,0.27501145]
[1769874751253,0.29823703,81490.0,81469.0,0.09956]
[1769874751556,0.29823703,81486.0,81469.0,0.09956]
[1769874752055,0.45716,81491.0,81472.0,0.27501145]
[1769874752249,0.45716,81491.0,81474.0,0.27501145]
[1769874755547,0.46016,81491.0,81474.0,0.27501145]
[1769874755752,0.09956,81490.0,81474.0,0.27501145]
[1769874757859,0.39260643,81490.0,81474.0,0.27501145]
[1769874758562,0.29304643,81489.0,81469.0,0.14726346]
[1769874759258,0.29304643,81489.0,81469.0,0.42730495]
[1769874760066,0.29304643,81489.0,81468.0,0.14726346]
[1769874760565,0.29304643,81489.0,81464.0,0.14726346]
[1769874760761,0.29304643,81489.0,81463.0,0.14726346]
[1769874761064,0.28329707,81487.0,81461.0,0.433739]
[1769874761265,0.09956,81490.0,81464.0,0.27418254]
[1769874761459,0.09956,81490.0,81471.0,0.27418254]
[1769874762963,0.24377475,81509.0,81480.0,0.27418254]
[1769874762964,0.09956,81500.0,81480.0,0.27418254]
[1769874763169,0.09956,81502.0,81485.0,0.27418254]
[1769874763866,0.28329707,81501.0,81480.0,0.27418254]
[1769874767464,0.28329707,81501.0,81478.0,0.24682346]
[1769874768060,0.28329707,81501.0,81479.0,0.27418254]
[1769874768865,0.28329707,81499.0,81478.0,0.09956]
[1769874771572,0.28329707,81497.0,81478.0,0.09956]
[1769874771770,0.09956,81502.0,81479.0,0.27418254]
[1769874771974,0.09956,81502.0,81479.0,0.28647254]
[1769874774270,0.11015264,81501.0,81479.0,0.28647254]
[1769874774471,0.09956,81502.0,81479.0,0.28647254]
[1769874774678,0.11014881,81501.0,81479.0,0.28647254]
[1769874774868,0.38285707,81502.0,81479.0,0.28647254]
[1769874775069,0.11014896,81501.0,81479.0,0.28647254]
[1769874775365,0.38285707,81502.0,81479.0,0.28647254]
[1769874775680,0.11013994,81501.0,81479.0,0.27418254]
[1769874775878,0.38285707,81502.0,81479.0,0.27418254]
[1769874776175,0.11013664,81501.0,81479.0,0.27418254]
[1769874776375,0.38285707,81502.0,81479.0,0.27418254]
[1769874776571,0.11012627,81501.0,81479.0,0.27418254]
[1769874776876,0.28329707,81500.0,81478.0,0.09956]
[1769874778468,0.28329707,81500.0,81478.0,0.37374254]
[1769874779479,0.29558407,81500.0,81479.0,0.27418254]
[1769874779676,0.11018395,81499.0,81479.0,0.27418254]
[1769874779877,0.29558407,81500.0,81479.0,0.27418254]
[1769874780178,0.39350652,81499.0,81479.0,0.27418254]
[1769874780476,0.28329707,81499.0,81479.0,0.27418254]
[1769874780971,0.11023369,81498.0,81479.0,0.27418254]
[1769874781277,0.28329707,81499.0,81479.0,0.27418254]
[1769874781473,0.39351882,81498.0,81479.0,0.27418254]
[1769874781678,0.29558507,81498.0,81479.0,0.27418254]
[1769874781878,0.28329707,81495.0,81474.0,0.27418254]
[1769874782075,0.28329707,81493.0,81471.0,0.45651336]
[1769874782275,0.28329707,81492.0,81472.0,0.27418254]
[1769874782478,0.28329707,81489.0,81467.0,0.28189082]
[1769874782777,0.09956,81493.0,81467.0,0.28189082]
[1769874782778,0.28329707,81485.0,81467.0,0.09956]
[1769874782979,0.28329707,81483.0,81467.0,0.09956]
[1769874783177,0.09956,81482.0,81467.0,0.09956]
[1769874783575,0.38285707,81482.0,81467.0,0.09956]
[1769874783775,0.28329707,81481.0,81474.0,0.001]
[1769874784079,0.28329707,81481.0,81467.0,0.09956]
[1769874784681,0.09956,81482.0,81467.0,0.09956]
[1769874785980,0.28329707,81481.0,81467.0,0.09956]
[1769874787875,0.28329707,81481.0,81458.0,0.27418254]
[1769874788081,0.29921467,81479.0,81454.0,0.28189082]
[1769874788585,0.29921467,81477.0,81455.0,0.28574655]
[1769874790878,0.09956,81482.0,81459.0,0.28574655]
[1769874791087,0.09956,81484.0,81464.0,0.28574655]
[1769874791383,0.09956,81483.0,81466.0,0.28574655]
[1769874792181,0.09956,81490.0,81468.0,0.28574655]
[1769874792482,0.09956,81490.0,81470.0,0.28574655]
[1769874794081,0.09956,81490.0,81470.0,0.28674655]
[1769874795778,0.31150267,81495.0,81470.0,0.28674655]
[1769874796782,0.31150267,81495.0,81472.0,0.28574655]
[1769874796783,0.012288,81495.0,81472.0,0.28574655]
[1769874796988,0.012287,81499.0,81477.0,0.28574655]
[1769874797685,0.012287,81499.0,81481.0,0.28574655]
[1769874798287,0.012287,81503.0,81481.0,0.28574655]
[1769874798588,0.21160551,81502.0,81481.0,0.28574655]
[1769874798783,0.11204551,81501.0,81481.0,0.28574655]
[1769874798985,0.09956,81502.0,81481.0,0.28574655]
[1769874799290,0.09956,81501.0,81481.0,0.28574655]
[1769874799981,0.09956,81501.0,81481.0,0.28674655]
[1769874801891,0.09956,81501.0,81481.0,0.28574655]
[1769874802189,0.09956,81501.0,81481.0,0.28674655]
[1769874803683,0.39877467,81501.0,81481.0,0.28574655]
[1769874803889,0.39877467,81501.0,81481.0,0.28674655]
[1769874804190,0.012288,81497.0,81481.0,0.28674655]
[1769874804390,0.012287,81500.0,81481.0,0.28674655]
[1769874804988,0.39877467,81501.0,81481.0,0.28674655]
[1769874805788,0.09956,81501.0,81481.0,0.28574655]
[1769874805990,0.09956,81501.0,81481.0,0.28674655]
[1769874806586,0.09956,81501.0,81481.0,0.28574655]
[1769874806890,0.09956,81501.0,81481.0,0.28674655]
[1769874807489,0.31150167,81500.0,81481.0,0.28674655]
[1769874807687,0.012287,81500.0,81481.0,0.28674655]
[1769874807892,0.012287,81500.0,81482.0,0.28574655]
[1769874808987,0.09956,81501.0,81482.0,0.28574655]
[1769874809188,0.09956,81501.0,81482.0,0.28674655]
[1769874809884,0.09956,81501.0,81482.0,0.28574655]
[1769874810089,0.09956,81501.0,81482.0,0.28674655]
[1769874811892,0.29921467,81500.0,81482.0,0.28674655]
[1769874812292,0.29921467,81500.0,81482.0,0.28574655]
[1769874812495,0.29921467,81500.0,81482.0,0.28674655]
[1769874812797,0.29921467,81498.0,81481.0,0.43848208]
[1769874813201,0.29921467,81498.0,81482.0,0.001]
[1769874814595,0.29921467,81498.0,81480.0,0.09956]
[1769874815790,0.09956,81501.0,81481.0,0.28574655]
[1769874815992,0.76669467,81508.0,81491.0,0.28574655]
[1769874816193,0.29921467,81513.0,81491.0,0.28574655]
[1769874816500,0.29921467,81511.0,81491.0,0.28574655]
[1769874816689,0.51084436,81510.0,81491.0,0.28574655]
[1769874816892,0.29998519,81509.0,81491.0,0.28574655]
[1769874817093,0.012286,81507.0,81491.0,0.28574655]
[1769874817602,0.31227119,81507.0,81491.0,0.28574655]
[1769874817894,0.29998519,81503.0,81480.0,0.09956]
[1769874818095,0.29998519,81495.0,81480.0,0.14264551]
[1769874818302,0.29998519,81495.0,81475.0,0.28544167]
[1769874818501,0.31227319,81495.0,81475.0,0.28544167]
[1769874818695,0.29998519,81492.0,81472.0,0.18233082]
[1769874818895,0.29998519,81492.0,81471.0,0.38500167]
[1769874819097,0.29998519,81492.0,81472.0,0.28544167]
[1769874819602,0.012288,81493.0,81472.0,0.28544167]
[1769874819799,0.29998519,81497.0,81472.0,0.28544167]
[1769874819995,0.11091061,81496.0,81480.0,0.14264551]
[1769874820200,0.21051668,81495.0,81480.0,0.14264551]
[1769874820401,0.09956,81495.0,81480.0,0.14264551]
[1769874820802,0.09956,81495.0,81478.0,0.28544167]
[1769874821104,0.11100434,81494.0,81478.0,0.28544167]
[1769874821301,0.09956,81495.0,81478.0,0.28544167]